[Event "Titled Tuesday Blitz August 16 Late 2022"]
[White "Thiel, Thomas"]
[Black "Kovacevic, Radmila"]
[WhiteFideId "4615964"]
[BlackFideId "933171"]
[WhiteElo "2230"]
[BlackElo "2157"]
[Result "0-1"]
[Round "10"]
[TimeControl "180+1"]
[Date "2022.08.18"]
[WhiteClock "0:00:00"]
[BlackClock "0:00:00"]

1. e4 {[%clk 0:00:00]}  e5 {[%clk 0:00:00]} 2. Nf3 {[%clk 0:00:00]}  d5 {[%clk 0:00:00]} 3. d4 {[%clk 0:00:00]}  dxe4 {[%clk 0:00:00]} 4. Nxe5 {[%clk 0:00:00]}  Bd6 {[%clk 0:00:00]} 5. Qh5 {[%clk 0:00:00]}  g6 {[%clk 0:00:00]} 6. Qe2 {[%clk 0:00:00]}  Nf6 {[%clk 0:00:00]} 7. Bg5 {[%clk 0:00:00]}  Bf5 {[%clk 0:00:00]} 8. Nd2 {[%clk 0:00:00]}  O-O {[%clk 0:00:00]} 9. O-O-O {[%clk 0:00:00]}  Nc6 {[%clk 0:00:00]} 10. Ndc4 {[%clk 0:00:00]}  Re8 {[%clk 0:00:00]} 11. g4 {[%clk 0:00:00]}  Be6 {[%clk 0:00:00]} 12. Nxc6 {[%clk 0:00:00]}  bxc6 {[%clk 0:00:00]} 13. Nxd6 {[%clk 0:00:00]}  cxd6 {[%clk 0:00:00]} 14. h3 {[%clk 0:00:00]}  Bxa2 {[%clk 0:00:00]} 15. b3 {[%clk 0:00:00]}  Rb8 {[%clk 0:00:00]} 16. Qa6 {[%clk 0:00:00]}  Bxb3 {[%clk 0:00:00]} 17. cxb3 {[%clk 0:00:00]}  Rxb3 {[%clk 0:00:00]} 18. Bc4 {[%clk 0:00:00]}  Rb6 {[%clk 0:00:00]} 19. Qa2 {[%clk 0:00:00]}  d5 {[%clk 0:00:00]} 20. Bb3 {[%clk 0:00:00]}  Qb8 {[%clk 0:00:00]} 21. Kc2 {[%clk 0:00:00]}  Nd7 {[%clk 0:00:00]} 22. Rb1 {[%clk 0:00:00]}  Kg7 {[%clk 0:00:00]} 23. Be3 {[%clk 0:00:00]}  Qc7 {[%clk 0:00:00]} 24. Ba4 {[%clk 0:00:00]}  Reb8 {[%clk 0:00:00]} 25. Rxb6 {[%clk 0:00:00]}  axb6 {[%clk 0:00:00]} 26. h4 {[%clk 0:00:00]}  Ra8 {[%clk 0:00:00]} 27. h5 {[%clk 0:00:00]}  b5 {[%clk 0:00:00]} 28. hxg6 {[%clk 0:00:00]}  fxg6 {[%clk 0:00:00]} 29. Bh6+ {[%clk 0:00:00]}  Kg8 {[%clk 0:00:00]} 30. Qb2 {[%clk 0:00:00]}  Rxa4 {[%clk 0:00:00]} 31. Qc3 {[%clk 0:00:00]}  Rc4 {[%clk 0:00:00]} 0-1


[Site "https://www.chess.com"]

[Event "Titled Tuesday Blitz August 16 Late 2022"]
[White "Vasquez Schroeder, Rodrigo"]
[Black "Hansen, Eric"]
[WhiteFideId "3400042"]
[BlackFideId "2606771"]
[WhiteElo "2567"]
[BlackElo "2568"]
[Result "0-1"]
[Round "10"]
[TimeControl "180+1"]
[Date "2022.08.16"]
[WhiteClock "0:00:16"]
[BlackClock "0:00:09"]

1. e4 {[%clk 0:03:00]}  e5 {[%clk 0:02:58]} 2. Nf3 {[%clk 0:02:59]}  Nc6 {[%clk 0:02:59]} 3. Bb5 {[%clk 0:02:59]}  a6 {[%clk 0:02:59]} 4. Ba4 {[%clk 0:02:58]}  Nf6 {[%clk 0:02:59]} 5. O-O {[%clk 0:02:58]}  Be7 {[%clk 0:02:58]} 6. Re1 {[%clk 0:02:58]}  b5 {[%clk 0:02:58]} 7. Bb3 {[%clk 0:02:59]}  d6 {[%clk 0:02:59]} 8. c3 {[%clk 0:02:59]}  O-O {[%clk 0:03:00]} 9. h3 {[%clk 0:02:59]}  Na5 {[%clk 0:02:59]} 10. Bc2 {[%clk 0:02:59]}  c5 {[%clk 0:03:00]} 11. d4 {[%clk 0:03:00]}  Nd7 {[%clk 0:02:59]} 12. Kh1 {[%clk 0:02:57]}  exd4 {[%clk 0:02:49]} 13. cxd4 {[%clk 0:02:57]}  Nc6 {[%clk 0:02:49]} 14. Nc3 {[%clk 0:02:55]}  Re8 {[%clk 0:02:39]} 15. Be3 {[%clk 0:02:50]}  Bb7 {[%clk 0:02:37]} 16. Nd5 {[%clk 0:02:43]}  Bf8 {[%clk 0:02:35]} 17. Bg5 {[%clk 0:02:33]}  Qb8 {[%clk 0:02:36]} 18. Be3 {[%clk 0:02:24]}  g6 {[%clk 0:02:16]} 19. dxc5 {[%clk 0:02:07]}  dxc5 {[%clk 0:02:07]} 20. Bf4 {[%clk 0:02:07]}  Nce5 {[%clk 0:01:59]} 21. Nxe5 {[%clk 0:02:06]}  Rxe5 {[%clk 0:01:59]} 22. Qd2 {[%clk 0:01:44]}  Bd6 {[%clk 0:01:35]} 23. Bxe5 {[%clk 0:01:41]}  Nxe5 {[%clk 0:01:33]} 24. b3 {[%clk 0:01:38]}  Nc6 {[%clk 0:00:46]} 25. Rad1 {[%clk 0:01:33]}  Nd4 {[%clk 0:00:45]} 26. Qc3 {[%clk 0:01:26]}  Bxd5 {[%clk 0:00:39]} 27. exd5 {[%clk 0:01:25]}  b4 {[%clk 0:00:36]} 28. Qc4 {[%clk 0:01:24]}  Qd8 {[%clk 0:00:36]} 29. Re4 {[%clk 0:01:20]}  Qf6 {[%clk 0:00:36]} 30. Kg1 {[%clk 0:01:17]}  Nb5 {[%clk 0:00:35]} 31. Rde1 {[%clk 0:01:16]}  Kg7 {[%clk 0:00:35]} 32. R4e3 {[%clk 0:01:09]}  Ra7 {[%clk 0:00:32]} 33. Rf3 {[%clk 0:01:08]}  Qb2 {[%clk 0:00:33]} 34. Rfe3 {[%clk 0:00:57]}  Na3 {[%clk 0:00:31]} 35. Qh4 {[%clk 0:00:43]}  Nxc2 {[%clk 0:00:31]} 36. R3e2 {[%clk 0:00:42]}  Qd4 {[%clk 0:00:29]} 37. Qd8 {[%clk 0:00:26]}  Bc7 {[%clk 0:00:20]} 38. Qc8 {[%clk 0:00:22]}  Nxe1 {[%clk 0:00:20]} 39. Rxe1 {[%clk 0:00:22]}  Be5 {[%clk 0:00:14]} 40. Qe8 {[%clk 0:00:19]}  Bf6 {[%clk 0:00:13]} 41. Qb8 {[%clk 0:00:18]}  Re7 {[%clk 0:00:12]} 42. Rxe7 {[%clk 0:00:18]}  Bxe7 {[%clk 0:00:12]} 43. Qb7 {[%clk 0:00:17]}  Qd1+ {[%clk 0:00:11]} 44. Kh2 {[%clk 0:00:17]}  Bd6+ {[%clk 0:00:11]} 45. g3 {[%clk 0:00:18]}  Qd2 {[%clk 0:00:10]} 46. Kg2 {[%clk 0:00:19]}  Be5 {[%clk 0:00:08]} 47. Qe7 {[%clk 0:00:16]}  Qxd5+ {[%clk 0:00:08]} 48. Kg1 {[%clk 0:00:16]}  Bd4 {[%clk 0:00:09]} 0-1


[Site "https://www.chess.com"]

[Event "Titled Tuesday Blitz August 16 Late 2022"]
[White "Voege, Tobias"]
[Black "Wu, Rochelle"]
[WhiteFideId "1270513"]
[BlackFideId "30908132"]
[WhiteElo "2360"]
[BlackElo "2168"]
[Result "1-0"]
[Round "10"]
[TimeControl "180+1"]
[Date "2022.08.16"]
[WhiteClock "0:00:05"]
[BlackClock "0:00:09"]

1. e4 {[%clk 0:03:00]}  c5 {[%clk 0:02:59]} 2. Nf3 {[%clk 0:03:00]}  d6 {[%clk 0:02:59]} 3. Nc3 {[%clk 0:02:59]}  Nf6 {[%clk 0:02:58]} 4. d3 {[%clk 0:02:56]}  Nc6 {[%clk 0:02:57]} 5. g3 {[%clk 0:02:57]}  g6 {[%clk 0:02:57]} 6. Bg2 {[%clk 0:02:57]}  Bg7 {[%clk 0:02:57]} 7. O-O {[%clk 0:02:57]}  O-O {[%clk 0:02:58]} 8. Nd2 {[%clk 0:02:49]}  Rb8 {[%clk 0:02:54]} 9. a4 {[%clk 0:02:46]}  a6 {[%clk 0:02:53]} 10. f4 {[%clk 0:02:46]}  Bd7 {[%clk 0:02:50]} 11. h3 {[%clk 0:02:45]}  b5 {[%clk 0:02:49]} 12. axb5 {[%clk 0:02:44]}  axb5 {[%clk 0:02:50]} 13. g4 {[%clk 0:02:42]}  Nd4 {[%clk 0:02:43]} 14. Ne2 {[%clk 0:02:34]}  Nxe2+ {[%clk 0:02:22]} 15. Qxe2 {[%clk 0:02:35]}  Bc6 {[%clk 0:02:23]} 16. f5 {[%clk 0:02:15]}  Nd7 {[%clk 0:02:18]} 17. Nf3 {[%clk 0:02:08]}  Qc7 {[%clk 0:02:04]} 18. h4 {[%clk 0:01:49]}  d5 {[%clk 0:01:58]} 19. fxg6 {[%clk 0:01:42]}  fxg6 {[%clk 0:01:55]} 20. exd5 {[%clk 0:01:40]}  Bxd5 {[%clk 0:01:54]} 21. Ng5 {[%clk 0:01:37]}  Rxf1+ {[%clk 0:01:52]} 22. Qxf1 {[%clk 0:01:29]}  Bd4+ {[%clk 0:01:37]} 23. Kh1 {[%clk 0:01:29]}  Qb7 {[%clk 0:01:20]} 24. Bxd5+ {[%clk 0:01:07]}  Qxd5+ {[%clk 0:01:21]} 25. Qf3 {[%clk 0:01:06]}  Qxf3+ {[%clk 0:01:09]} 26. Nxf3 {[%clk 0:01:06]}  Rf8 {[%clk 0:01:06]} 27. Kg2 {[%clk 0:00:58]}  Nf6 {[%clk 0:00:54]} 28. c3 {[%clk 0:00:48]}  Nxg4 {[%clk 0:00:29]} 29. cxd4 {[%clk 0:00:47]}  cxd4 {[%clk 0:00:30]} 30. Bg5 {[%clk 0:00:17]}  Rc8 {[%clk 0:00:24]} 31. Kg3 {[%clk 0:00:14]}  Nf6 {[%clk 0:00:21]} 32. Rc1 {[%clk 0:00:12]}  Ra8 {[%clk 0:00:16]} 33. Bxf6 {[%clk 0:00:13]}  exf6 {[%clk 0:00:15]} 34. Nxd4 {[%clk 0:00:10]}  Rd8 {[%clk 0:00:16]} 35. Nxb5 {[%clk 0:00:09]}  Rxd3+ {[%clk 0:00:17]} 36. Kf4 {[%clk 0:00:09]}  Rb3 {[%clk 0:00:17]} 37. Nd6 {[%clk 0:00:09]}  Rxb2 {[%clk 0:00:17]} 38. Ne4 {[%clk 0:00:08]}  f5 {[%clk 0:00:16]} 39. Rc8+ {[%clk 0:00:07]}  Kg7 {[%clk 0:00:16]} 40. Rc7+ {[%clk 0:00:08]}  Kf8 {[%clk 0:00:11]} 41. Nf6 {[%clk 0:00:06]}  Rb4+ {[%clk 0:00:12]} 42. Kg5 {[%clk 0:00:05]}  h6+ {[%clk 0:00:09]} 43. Kxg6 {[%clk 0:00:05]} 1-0


[Site "https://www.chess.com"]

[Event "Titled Tuesday Blitz August 16 Late 2022"]
[White "Zivkovic, Nemanja"]
[Black "Postnikov, Daniil"]
[WhiteFideId "942154"]
[BlackFideId "4166329"]
[WhiteElo "2372"]
[BlackElo "2261"]
[Result "1/2-1/2"]
[Round "10"]
[TimeControl "180+1"]
[Date "2022.08.16"]
[WhiteClock "0:00:13"]
[BlackClock "0:00:05"]

1. b3 {[%clk 0:03:00]}  e5 {[%clk 0:02:57]} 2. Bb2 {[%clk 0:03:00]}  Nc6 {[%clk 0:02:58]} 3. e3 {[%clk 0:03:01]}  a6 {[%clk 0:02:58]} 4. Nf3 {[%clk 0:03:01]}  d6 {[%clk 0:02:50]} 5. d4 {[%clk 0:03:01]}  e4 {[%clk 0:02:48]} 6. Nfd2 {[%clk 0:03:01]}  f5 {[%clk 0:02:48]} 7. c4 {[%clk 0:03:01]}  Nf6 {[%clk 0:02:48]} 8. Nc3 {[%clk 0:03:01]}  Be7 {[%clk 0:02:46]} 9. a3 {[%clk 0:02:57]}  O-O {[%clk 0:02:45]} 10. b4 {[%clk 0:02:57]}  Nb8 {[%clk 0:02:42]} 11. d5 {[%clk 0:02:53]}  Nbd7 {[%clk 0:02:42]} 12. Nb3 {[%clk 0:02:53]}  Ne5 {[%clk 0:02:41]} 13. Nd4 {[%clk 0:02:54]}  c5 {[%clk 0:02:38]} 14. bxc5 {[%clk 0:02:35]}  dxc5 {[%clk 0:02:38]} 15. Nb3 {[%clk 0:02:08]}  Bd6 {[%clk 0:02:34]} 16. Be2 {[%clk 0:02:07]}  Nfg4 {[%clk 0:02:30]} 17. g3 {[%clk 0:01:58]}  Bd7 {[%clk 0:02:00]} 18. h3 {[%clk 0:01:57]}  Nf6 {[%clk 0:01:58]} 19. a4 {[%clk 0:01:57]}  Qe7 {[%clk 0:01:48]} 20. a5 {[%clk 0:01:56]}  Kh8 {[%clk 0:01:41]} 21. Qc2 {[%clk 0:01:47]}  Rac8 {[%clk 0:01:39]} 22. Kf1 {[%clk 0:01:46]}  g5 {[%clk 0:01:37]} 23. h4 {[%clk 0:01:44]}  f4 {[%clk 0:01:30]} 24. hxg5 {[%clk 0:01:44]}  fxg3 {[%clk 0:01:19]} 25. gxf6 {[%clk 0:01:31]}  Rxf6 {[%clk 0:01:20]} 26. Nxe4 {[%clk 0:01:25]}  Rcf8 {[%clk 0:00:30]} 27. f4 {[%clk 0:01:15]}  Rxf4+ {[%clk 0:00:27]} 28. exf4 {[%clk 0:01:15]}  Rxf4+ {[%clk 0:00:28]} 29. Ke1 {[%clk 0:00:46]}  g2 {[%clk 0:00:23]} 30. Rg1 {[%clk 0:00:46]}  Bf5 {[%clk 0:00:17]} 31. Nbd2 {[%clk 0:00:39]}  Qh4+ {[%clk 0:00:13]} 32. Kd1 {[%clk 0:00:39]}  Bxe4 {[%clk 0:00:10]} 33. Nxe4 {[%clk 0:00:31]}  Rxe4 {[%clk 0:00:10]} 34. Ra3 {[%clk 0:00:17]}  Qf2 {[%clk 0:00:08]} 35. Qxe4 {[%clk 0:00:17]}  Qxg1+ {[%clk 0:00:08]} 36. Kc2 {[%clk 0:00:16]}  Qh2 {[%clk 0:00:05]} 37. Rh3 {[%clk 0:00:12]}  Qxh3 {[%clk 0:00:03]} 38. Bxe5+ {[%clk 0:00:12]}  Bxe5 {[%clk 0:00:02]} 39. Qxe5+ {[%clk 0:00:13]}  Kg8 {[%clk 0:00:02]} 40. Qe8+ {[%clk 0:00:14]}  Kg7 {[%clk 0:00:03]} 41. Qe7+ {[%clk 0:00:14]}  Kg8 {[%clk 0:00:03]} 42. Qxc5 {[%clk 0:00:13]}  Qg3 {[%clk 0:00:02]} 43. Qc8+ {[%clk 0:00:13]}  Kg7 {[%clk 0:00:03]} 44. Qd7+ {[%clk 0:00:13]}  Kg8 {[%clk 0:00:02]} 45. Qe8+ {[%clk 0:00:13]}  Kg7 {[%clk 0:00:03]} 46. Qe7+ {[%clk 0:00:14]}  Kg8 {[%clk 0:00:03]} 47. Qe6+ {[%clk 0:00:13]}  Kg7 {[%clk 0:00:04]} 48. Qe7+ {[%clk 0:00:12]}  Kg8 {[%clk 0:00:04]} 49. Qe8+ {[%clk 0:00:13]}  Kg7 {[%clk 0:00:05]} 50. Qe7+ {[%clk 0:00:13]} 1/2-1/2


[Site "https://www.chess.com"]

[Event "Titled Tuesday Blitz August 16 Late 2022"]
[White "Aldokhin, Ivan"]
[Black "Voege, Tobias"]
[WhiteFideId "24115720"]
[BlackFideId "1270513"]
[WhiteElo "2246"]
[BlackElo "2360"]
[Result "1-0"]
[Round "11"]
[TimeControl "180+1"]
[Date "2022.08.16"]
[WhiteClock "0:00:02"]
[BlackClock "0:00:02"]

1. e4 {[%clk 0:03:00]}  e6 {[%clk 0:02:56]} 2. d3 {[%clk 0:02:59]}  c5 {[%clk 0:02:54]} 3. Nd2 {[%clk 0:03:00]}  Nc6 {[%clk 0:02:54]} 4. Ngf3 {[%clk 0:02:59]}  g6 {[%clk 0:02:54]} 5. g3 {[%clk 0:03:00]}  Bg7 {[%clk 0:02:55]} 6. Bg2 {[%clk 0:03:01]}  d6 {[%clk 0:02:55]} 7. O-O {[%clk 0:02:59]}  Nge7 {[%clk 0:02:56]} 8. Ne1 {[%clk 0:02:44]}  O-O {[%clk 0:02:54]} 9. f4 {[%clk 0:02:45]}  f5 {[%clk 0:02:54]} 10. Nef3 {[%clk 0:02:43]}  Rb8 {[%clk 0:02:51]} 11. a4 {[%clk 0:02:42]}  a6 {[%clk 0:02:49]} 12. Kh1 {[%clk 0:02:39]}  b5 {[%clk 0:02:49]} 13. axb5 {[%clk 0:02:39]}  axb5 {[%clk 0:02:50]} 14. Re1 {[%clk 0:02:36]}  Nd4 {[%clk 0:02:40]} 15. Nxd4 {[%clk 0:02:35]}  Bxd4 {[%clk 0:02:41]} 16. Nf3 {[%clk 0:02:34]}  Bg7 {[%clk 0:02:40]} 17. exf5 {[%clk 0:02:31]}  Nxf5 {[%clk 0:02:35]} 18. Ng5 {[%clk 0:02:29]}  Qf6 {[%clk 0:02:24]} 19. Ra7 {[%clk 0:02:24]}  h6 {[%clk 0:02:19]} 20. Ne4 {[%clk 0:02:24]}  Qd8 {[%clk 0:02:15]} 21. Qg4 {[%clk 0:02:07]}  Kh7 {[%clk 0:02:08]} 22. Qh3 {[%clk 0:02:01]}  Kg8 {[%clk 0:01:58]} 23. Bd2 {[%clk 0:01:42]}  d5 {[%clk 0:01:52]} 24. Nxc5 {[%clk 0:01:35]}  Qb6 {[%clk 0:01:50]} 25. Rxg7+ {[%clk 0:01:32]}  Kxg7 {[%clk 0:01:46]} 26. b4 {[%clk 0:01:28]}  h5 {[%clk 0:01:28]} 27. Bc3+ {[%clk 0:01:12]}  d4 {[%clk 0:01:20]} 28. Bb2 {[%clk 0:01:12]}  Qd6 {[%clk 0:01:15]} 29. Be4 {[%clk 0:01:08]}  Bd7 {[%clk 0:00:55]} 30. Qg2 {[%clk 0:00:51]}  Rbc8 {[%clk 0:00:47]} 31. Nb7 {[%clk 0:00:34]}  Qxb4 {[%clk 0:00:41]} 32. c3 {[%clk 0:00:19]}  dxc3 {[%clk 0:00:37]} 33. Ba1 {[%clk 0:00:18]}  Kh7 {[%clk 0:00:33]} 34. h3 {[%clk 0:00:18]}  c2 {[%clk 0:00:30]} 35. Rc1 {[%clk 0:00:18]}  Qa3 {[%clk 0:00:24]} 36. Qd2 {[%clk 0:00:13]}  Nxg3+ {[%clk 0:00:23]} 37. Kh2 {[%clk 0:00:13]}  Nxe4 {[%clk 0:00:19]} 38. dxe4 {[%clk 0:00:14]}  Bc6 {[%clk 0:00:16]} 39. Nd6 {[%clk 0:00:11]}  Rcd8 {[%clk 0:00:15]} 40. Qd4 {[%clk 0:00:06]}  Rd7 {[%clk 0:00:14]} 41. Rxc2 {[%clk 0:00:05]}  Qf3 {[%clk 0:00:13]} 42. Rf2 {[%clk 0:00:02]}  Qb3 {[%clk 0:00:11]} 43. Qe5 {[%clk 0:00:02]}  Re7 {[%clk 0:00:08]} 44. f5 {[%clk 0:00:02]}  Qe3 {[%clk 0:00:04]} 45. fxg6+ {[%clk 0:00:02]}  Kh6 {[%clk 0:00:04]} 46. Rxf8 {[%clk 0:00:01]}  Qe2+ {[%clk 0:00:02]} 47. Kg1 {[%clk 0:00:02]} 1-0


[Site "https://www.chess.com"]

[Event "Titled Tuesday Blitz August 16 Late 2022"]
[White "Amburgy, Ryan"]
[Black "Janaszak, Dawid"]
[WhiteFideId "30924820"]
[BlackFideId "1119206"]
[WhiteElo "2066"]
[BlackElo "2165"]
[Result "1/2-1/2"]
[Round "11"]
[TimeControl "180+1"]
[Date "2022.08.16"]
[WhiteClock "0:00:10"]
[BlackClock "0:00:04"]

1. d4 {[%clk 0:03:00]}  Nf6 {[%clk 0:02:59]} 2. Nc3 {[%clk 0:03:01]}  d6 {[%clk 0:02:54]} 3. e4 {[%clk 0:03:01]}  g6 {[%clk 0:02:52]} 4. Nf3 {[%clk 0:03:01]}  Bg7 {[%clk 0:02:51]} 5. Be2 {[%clk 0:03:01]}  O-O {[%clk 0:02:49]} 6. O-O {[%clk 0:03:02]}  Bg4 {[%clk 0:02:49]} 7. Be3 {[%clk 0:03:01]}  Nc6 {[%clk 0:02:46]} 8. Re1 {[%clk 0:02:59]}  Bxf3 {[%clk 0:02:42]} 9. Bxf3 {[%clk 0:03:00]}  e5 {[%clk 0:02:43]} 10. dxe5 {[%clk 0:03:00]}  Nxe5 {[%clk 0:02:42]} 11. Be2 {[%clk 0:03:00]}  Re8 {[%clk 0:02:40]} 12. f3 {[%clk 0:02:57]}  c6 {[%clk 0:02:37]} 13. Bf2 {[%clk 0:02:56]}  b5 {[%clk 0:02:35]} 14. a3 {[%clk 0:02:48]}  Nh5 {[%clk 0:02:33]} 15. Qd2 {[%clk 0:02:45]}  Qc7 {[%clk 0:02:06]} 16. Rad1 {[%clk 0:02:40]}  Rad8 {[%clk 0:02:06]} 17. Be3 {[%clk 0:02:00]}  Nf6 {[%clk 0:01:54]} 18. Bf1 {[%clk 0:01:47]}  a5 {[%clk 0:01:50]} 19. Qf2 {[%clk 0:01:46]}  Rb8 {[%clk 0:01:46]} 20. h3 {[%clk 0:01:40]}  b4 {[%clk 0:01:42]} 21. axb4 {[%clk 0:01:41]}  axb4 {[%clk 0:01:42]} 22. Nb1 {[%clk 0:01:40]}  d5 {[%clk 0:01:41]} 23. Nd2 {[%clk 0:01:30]}  dxe4 {[%clk 0:01:39]} 24. Nxe4 {[%clk 0:01:31]}  Nxe4 {[%clk 0:01:39]} 25. fxe4 {[%clk 0:01:31]}  Qa5 {[%clk 0:01:23]} 26. Bf4 {[%clk 0:01:27]}  Rbd8 {[%clk 0:01:20]} 27. Kh1 {[%clk 0:01:15]}  Qa2 {[%clk 0:01:16]} 28. Qb6 {[%clk 0:01:10]}  Rb8 {[%clk 0:01:09]} 29. Qc5 {[%clk 0:00:53]}  Qxb2 {[%clk 0:01:07]} 30. Bc4 {[%clk 0:00:42]}  Qc3 {[%clk 0:00:56]} 31. Bxe5 {[%clk 0:00:36]}  Rxe5 {[%clk 0:00:57]} 32. Qxc6 {[%clk 0:00:36]}  Rbe8 {[%clk 0:00:38]} 33. Rf1 {[%clk 0:00:35]}  Rf8 {[%clk 0:00:36]} 34. Rd7 {[%clk 0:00:29]}  h5 {[%clk 0:00:20]} 35. Rfxf7 {[%clk 0:00:17]}  Rxf7 {[%clk 0:00:20]} 36. Rxf7 {[%clk 0:00:18]}  Kh7 {[%clk 0:00:19]} 37. Rf3 {[%clk 0:00:16]}  Qa1+ {[%clk 0:00:18]} 38. Rf1 {[%clk 0:00:16]}  Qd4 {[%clk 0:00:17]} 39. Bf7 {[%clk 0:00:15]}  Rg5 {[%clk 0:00:16]} 40. Be8 {[%clk 0:00:12]}  Qd2 {[%clk 0:00:15]} 41. e5 {[%clk 0:00:12]}  Qc3 {[%clk 0:00:10]} 42. Qxc3 {[%clk 0:00:11]}  bxc3 {[%clk 0:00:11]} 43. e6 {[%clk 0:00:12]}  Re5 {[%clk 0:00:10]} 44. Bd7 {[%clk 0:00:13]}  Kg8 {[%clk 0:00:08]} 45. Kh2 {[%clk 0:00:11]}  Re2 {[%clk 0:00:08]} 46. Rf3 {[%clk 0:00:09]}  Be5+ {[%clk 0:00:08]} 47. Kg1 {[%clk 0:00:09]}  Bd4+ {[%clk 0:00:09]} 48. Kf1 {[%clk 0:00:09]}  Re5 {[%clk 0:00:08]} 49. Rd3 {[%clk 0:00:09]}  Bc5 {[%clk 0:00:09]} 50. Rxc3 {[%clk 0:00:09]}  Kg7 {[%clk 0:00:08]} 51. g4 {[%clk 0:00:09]}  Be7 {[%clk 0:00:08]} 52. gxh5 {[%clk 0:00:09]}  gxh5 {[%clk 0:00:08]} 53. Rc7 {[%clk 0:00:09]}  Kf6 {[%clk 0:00:09]} 54. Bc8 {[%clk 0:00:09]}  Re3 {[%clk 0:00:09]} 55. Kg2 {[%clk 0:00:09]}  h4 {[%clk 0:00:09]} 56. c4 {[%clk 0:00:09]}  Rg3+ {[%clk 0:00:09]} 57. Kf2 {[%clk 0:00:09]}  Rxh3 {[%clk 0:00:08]} 58. c5 {[%clk 0:00:10]}  Rc3 {[%clk 0:00:08]} 59. c6 {[%clk 0:00:10]}  Bc5+ {[%clk 0:00:08]} 60. Ke2 {[%clk 0:00:10]}  h3 {[%clk 0:00:08]} 61. Rh7 {[%clk 0:00:11]}  h2 {[%clk 0:00:08]} 62. e7 {[%clk 0:00:11]}  Bxe7 {[%clk 0:00:08]} 63. Bd7 {[%clk 0:00:10]}  Rc2+ {[%clk 0:00:08]} 64. Kd3 {[%clk 0:00:10]}  Rf2 {[%clk 0:00:07]} 65. Rh6+ {[%clk 0:00:11]}  Kg7 {[%clk 0:00:07]} 66. Rh3 {[%clk 0:00:11]}  Bd6 {[%clk 0:00:07]} 67. Rh4 {[%clk 0:00:11]}  Rf1 {[%clk 0:00:07]} 68. Rg4+ {[%clk 0:00:11]}  Kf6 {[%clk 0:00:07]} 69. c7 {[%clk 0:00:10]}  Bxc7 {[%clk 0:00:07]} 70. Bc6 {[%clk 0:00:11]}  h1=Q {[%clk 0:00:04]} 71. Bxh1 {[%clk 0:00:12]}  Rxh1 {[%clk 0:00:04]} 72. Rc4 {[%clk 0:00:13]}  Be5 {[%clk 0:00:04]} 73. Re4 {[%clk 0:00:13]}  Kf5 {[%clk 0:00:04]} 74. Re2 {[%clk 0:00:13]}  Ra1 {[%clk 0:00:04]} 75. Kc4 {[%clk 0:00:13]}  Kf4 {[%clk 0:00:04]} 76. Kd5 {[%clk 0:00:14]}  Rd1+ {[%clk 0:00:05]} 77. Ke6 {[%clk 0:00:14]}  Rd6+ {[%clk 0:00:04]} 78. Ke7 {[%clk 0:00:14]}  Rh6 {[%clk 0:00:05]} 79. Rf2+ {[%clk 0:00:14]}  Ke4 {[%clk 0:00:05]} 80. Kd7 {[%clk 0:00:14]}  Kd5 {[%clk 0:00:06]} 81. Rf7 {[%clk 0:00:13]}  Rd6+ {[%clk 0:00:05]} 82. Ke7 {[%clk 0:00:13]}  Ra6 {[%clk 0:00:06]} 83. Rf1 {[%clk 0:00:09]}  Ra7+ {[%clk 0:00:06]} 84. Kf8 {[%clk 0:00:10]}  Ke6 {[%clk 0:00:07]} 85. Kg8 {[%clk 0:00:10]}  Rg7+ {[%clk 0:00:06]} 86. Kf8 {[%clk 0:00:11]}  Rh7 {[%clk 0:00:06]} 87. Ke8 {[%clk 0:00:10]}  Rb7 {[%clk 0:00:05]} 88. Rd1 {[%clk 0:00:09]}  Rh7 {[%clk 0:00:04]} 89. Rf1 {[%clk 0:00:09]}  Re7+ {[%clk 0:00:04]} 90. Kd8 {[%clk 0:00:09]}  Rh7 {[%clk 0:00:05]} 91. Kc8 {[%clk 0:00:08]}  Rc7+ {[%clk 0:00:04]} 92. Kd8 {[%clk 0:00:09]}  Rb7 {[%clk 0:00:05]} 93. Rc1 {[%clk 0:00:10]}  Rh7 {[%clk 0:00:05]} 94. Kc8 {[%clk 0:00:09]}  Rc7+ {[%clk 0:00:03]} 95. Rxc7 {[%clk 0:00:10]}  Bxc7 {[%clk 0:00:04]} 1/2-1/2


[Site "https://www.chess.com"]

[Event "Titled Tuesday Blitz August 16 Late 2022"]
[White "Barria Zuniga, Daniel"]
[Black "Deviprasath, Sharvesh"]
[WhiteFideId "3400816"]
[BlackFideId "30938228"]
[WhiteElo "2414"]
[BlackElo "2102"]
[Result "0-1"]
[Round "11"]
[TimeControl "180+1"]
[Date "2022.08.18"]
[WhiteClock "0:00:00"]
[BlackClock "0:00:00"]

1. d4 {[%clk 0:00:00]}  Nf6 {[%clk 0:00:00]} 2. c4 {[%clk 0:00:00]}  g6 {[%clk 0:00:00]} 3. Nc3 {[%clk 0:00:00]}  Bg7 {[%clk 0:00:00]} 4. e4 {[%clk 0:00:00]}  d6 {[%clk 0:00:00]} 5. Be2 {[%clk 0:00:00]}  O-O {[%clk 0:00:00]} 6. Nf3 {[%clk 0:00:00]}  e5 {[%clk 0:00:00]} 7. d5 {[%clk 0:00:00]}  h6 {[%clk 0:00:00]} 8. O-O {[%clk 0:00:00]}  a5 {[%clk 0:00:00]} 9. Ne1 {[%clk 0:00:00]}  Na6 {[%clk 0:00:00]} 10. Nd3 {[%clk 0:00:00]}  Nd7 {[%clk 0:00:00]} 11. Be3 {[%clk 0:00:00]}  f5 {[%clk 0:00:00]} 12. f3 {[%clk 0:00:00]}  f4 {[%clk 0:00:00]} 13. Bf2 {[%clk 0:00:00]}  g5 {[%clk 0:00:00]} 14. g4 {[%clk 0:00:00]}  Nf6 {[%clk 0:00:00]} 15. h3 {[%clk 0:00:00]}  h5 {[%clk 0:00:00]} 16. Kg2 {[%clk 0:00:00]}  Kf7 {[%clk 0:00:00]} 17. Rh1 {[%clk 0:00:00]}  Rh8 {[%clk 0:00:00]} 18. a3 {[%clk 0:00:00]}  Bd7 {[%clk 0:00:00]} 19. b4 {[%clk 0:00:00]}  axb4 {[%clk 0:00:00]} 20. axb4 {[%clk 0:00:00]}  b6 {[%clk 0:00:00]} 21. Qb3 {[%clk 0:00:00]}  Rh7 {[%clk 0:00:00]} 22. Nb2 {[%clk 0:00:00]}  Qh8 {[%clk 0:00:00]} 23. c5 {[%clk 0:00:00]}  Nxc5 {[%clk 0:00:00]} 24. bxc5 {[%clk 0:00:00]}  Rxa1 {[%clk 0:00:00]} 25. Rxa1 {[%clk 0:00:00]}  hxg4 {[%clk 0:00:00]} 26. hxg4 {[%clk 0:00:00]}  Rh2+ {[%clk 0:00:00]} 27. Kf1 {[%clk 0:00:00]}  Rh1+ {[%clk 0:00:00]} 28. Bg1 {[%clk 0:00:00]}  Qh2 {[%clk 0:00:00]} 29. Ke1 {[%clk 0:00:00]}  Qxg1+ {[%clk 0:00:00]} 30. Kd2 {[%clk 0:00:00]}  Qe3+ {[%clk 0:00:00]} 31. Kc2 {[%clk 0:00:00]}  Rxa1 {[%clk 0:00:00]} 32. Nc4 {[%clk 0:00:00]}  Qc1+ {[%clk 0:00:00]} 33. Kd3 {[%clk 0:00:00]}  dxc5 {[%clk 0:00:00]} 34. Nxe5+ {[%clk 0:00:00]}  Kf8 {[%clk 0:00:00]} 35. d6 {[%clk 0:00:00]}  Qe3+ {[%clk 0:00:00]} 36. Kc4 {[%clk 0:00:00]}  Qd4# {[%clk 0:00:00]} 0-1


[Site "https://www.chess.com"]